Body,Body Name,Date,TransNo,Amount � (Excl VAT),Supplier name,Description,Expense Area,Expense Type,Expense Code,
http://opendatacommunities.org/id/london-borough-council/sutton,London Borough of Sutton,15/08/2018,1261666,5.82 , AMZN MKTP UK,TOYS,Peoples Services Directorate,Education Equipment,F009,
http://opendatacommunities.org/id/london-borough-council/sutton,London Borough of Sutton,14/08/2018,1261666,5.93 , AMAZON.CO.UK,TOYS,Peoples Services Directorate,Education Equipment,F009,
http://opendatacommunities.org/id/london-borough-council/sutton,London Borough of Sutton,14/08/2018,1261666,11.62 , AMZN MKTP UK,TOYS,Peoples Services Directorate,Education Equipment,F009,
http://opendatacommunities.org/id/london-borough-council/sutton,London Borough of Sutton,20/08/2018,1261666,107.17 , SAINSBURYS TO YOU 0052,SAINSBURYS SHOP,Peoples Services Directorate,Provisions - General,F150,
http://opendatacommunities.org/id/london-borough-council/sutton,London Borough of Sutton,06/08/2018,1261666,121.08 , SAINSBURYS TO YOU 0052,SAINSBURYS SHOP,Peoples Services Directorate,Provisions - General,F150,
http://opendatacommunities.org/id/london-borough-council/sutton,London Borough of Sutton,26/07/2018,1261666,20.24 , AMAZON UK MARKETPLACE,STATIONARY,Peoples Services Directorate,Stationery,F220,
http://opendatacommunities.org/id/london-borough-council/sutton,London Borough of Sutton,07/08/2018,1261666,22.37 , B & Q 1191,SOSC EQUIPMENT,Peoples Services Directorate,Other Services,F340,
http://opendatacommunities.org/id/london-borough-council/sutton,London Borough of Sutton,07/08/2018,1261666,135.78 , WWW.ARGOS.CO.UK,SOSC - SHED,Peoples Services Directorate,Postages - General,F350,
http://opendatacommunities.org/id/london-borough-council/sutton,London Borough of Sutton,07/08/2018,1261666,40.27 , B & Q 1191,SOSC EQUIPMENT,Peoples Services Directorate,Postages - General,F350,
http://opendatacommunities.org/id/london-borough-council/sutton,London Borough of Sutton,03/08/2018,1261666,264.58 , DVLA VEHICLE TAX,317.50 - F106 0044 9999 - VEHICLE REGISTRATION TAX,Peoples Services Directorate,Personal Requisites,F106,
http://opendatacommunities.org/id/london-borough-council/sutton,London Borough of Sutton,31/07/2018,1261666,126.00 , ENTERPRISE RENT-A-CAR,151.20 - F106 0044 9999 - ENTERPRISE CARE HIRE NEW MALDEN.PDF,Peoples Services Directorate,Personal Requisites,F106,
http://opendatacommunities.org/id/london-borough-council/sutton,London Borough of Sutton,14/08/2018,1261666,66.67 , TEAM SPORT V/T,TYS ACTIVITY GOKARTING - TEAMSPORT.CO.UK,Peoples Services Directorate,Personal Requisites,F106,
http://opendatacommunities.org/id/london-borough-council/sutton,London Borough of Sutton,08/08/2018,1261666,150.00 , TRAQ,TYS WEEKEND ACTIVITY,Peoples Services Directorate,Provisions - General,F150,
http://opendatacommunities.org/id/london-borough-council/sutton,London Borough of Sutton,22/08/2018,1261666,198.00 , WWW.GOAPE.CO.UK,198 - F107 0044 9999 - GO APE.PNG,Peoples Services Directorate,Client Care/Assistance,H301,
http://opendatacommunities.org/id/london-borough-council/sutton,London Borough of Sutton,07/08/2018,1261666,180.00 , GLAZED ALL OVER,GLAZED ALL OVER,Peoples Services Directorate,Client Care/Assistance,H301,
http://opendatacommunities.org/id/london-borough-council/sutton,London Borough of Sutton,17/08/2018,1261666,94.57 , TRAINLINE,JL TRAVEL TO VISIT SOMERSET,Peoples Services Directorate,Travelling and Subsistence Allowances,A530,
http://opendatacommunities.org/id/london-borough-council/sutton,London Borough of Sutton,13/08/2018,1261666,382.50 , BRITISH HEART FOUNDATI,FURNITURE FROM SETTING UP,Peoples Services Directorate,Furniture - Purchase,F080,
http://opendatacommunities.org/id/london-borough-council/sutton,London Borough of Sutton,23/08/2018,1261666,125.00 , HMCTS-SUSSEX126,FINE - COURT SERVICE WILL NOT PROVIDE A RECEIPT,Peoples Services Directorate,Materials - General,F100,
http://opendatacommunities.org/id/london-borough-council/sutton,London Borough of Sutton,17/08/2018,1261666,150.50 , TVLICENSING.CO.UK,SET UP - LEAVING CARE,Peoples Services Directorate,Personal Requisites,F106,
http://opendatacommunities.org/id/london-borough-council/sutton,London Borough of Sutton,17/08/2018,1261666,71.61 , WWW.ARGOS.CO.UK,SET UP - LEAVING CARE,Peoples Services Directorate,Personal Requisites,F106,
http://opendatacommunities.org/id/london-borough-council/sutton,London Borough of Sutton,17/08/2018,1261666,507.46 , DUNELM ONLINE ORDER,SET UP - LEAVING CARE,Peoples Services Directorate,Personal Requisites,F106,
http://opendatacommunities.org/id/london-borough-council/sutton,London Borough of Sutton,12/08/2018,1261666,(131.67), WWW.ARGOS.CO.UK,REFUND,Peoples Services Directorate,Personal Requisites,F106,
http://opendatacommunities.org/id/london-borough-council/sutton,London Borough of Sutton,09/08/2018,1261666,131.67 , WWW.ARGOS.CO.UK,SET UP - LEAVING CARE,Peoples Services Directorate,Personal Requisites,F106,
http://opendatacommunities.org/id/london-borough-council/sutton,London Borough of Sutton,09/08/2018,1261666,277.44 , WWW.ARGOS.CO.UK,SET UP - LEAVING CARE,Peoples Services Directorate,Personal Requisites,F106,
http://opendatacommunities.org/id/london-borough-council/sutton,London Borough of Sutton,20/08/2018,1261666,12.50 , NEW SOUTHERN RAILW,MA TRAVEL TO COURT,Peoples Services Directorate,Personal Requisites,F106,
http://opendatacommunities.org/id/london-borough-council/sutton,London Borough of Sutton,21/08/2018,1261666,6.98 , KFC-BRIDGEWATER,JL ACTIVITY,Peoples Services Directorate,Personal Requisites,F106,
http://opendatacommunities.org/id/london-borough-council/sutton,London Borough of Sutton,15/08/2018,1261666,72.92 , PRIMARK,KB LAST PRISON CLOTHES,Peoples Services Directorate,Personal Requisites,F106,
http://opendatacommunities.org/id/london-borough-council/sutton,London Borough of Sutton,15/08/2018,1261666,10.17 , MCDONALDS,JB ACTIVITY AND CHILD,Peoples Services Directorate,Personal Requisites,F106,
http://opendatacommunities.org/id/london-borough-council/sutton,London Borough of Sutton,10/08/2018,1261666,(12.50), BP WRYTHE CONNECT,REFUND FOR GIFT CARD - RA,Peoples Services Directorate,Personal Requisites,F106,
http://opendatacommunities.org/id/london-borough-council/sutton,London Borough of Sutton,10/08/2018,1261666,6.67 , SAINSBURYS SACAT 2006,RA MOVING IN PRESENT,Peoples Services Directorate,Personal Requisites,F106,
http://opendatacommunities.org/id/london-borough-council/sutton,London Borough of Sutton,10/08/2018,1261666,14.99 , BP WRYTHE CONNECT,RA MOVING PRESENT AND CARD,Peoples Services Directorate,Personal Requisites,F106,
http://opendatacommunities.org/id/london-borough-council/sutton,London Borough of Sutton,08/08/2018,1261666,31.25 , PRIMARK,KB PRISON CLOTHES,Peoples Services Directorate,Personal Requisites,F106,
http://opendatacommunities.org/id/london-borough-council/sutton,London Borough of Sutton,06/08/2018,1261666,10.82 , ARGOS LTD,KB ADAPTOR PRISON,Peoples Services Directorate,Personal Requisites,F106,
http://opendatacommunities.org/id/london-borough-council/sutton,London Borough of Sutton,06/08/2018,1261666,8.75 , ASDA SUPERSTORE,KB UNDERWEAR PRISON,Peoples Services Directorate,Personal Requisites,F106,
http://opendatacommunities.org/id/london-borough-council/sutton,London Borough of Sutton,31/07/2018,1261666,5.76 , MCDONALDS,MA ACTIVITY AFRER CP CONFERENCE,Peoples Services Directorate,Personal Requisites,F106,
http://opendatacommunities.org/id/london-borough-council/sutton,London Borough of Sutton,14/08/2018,1261666,30.00 , LBSUTTON,LCT BIRTH CERTIFICATE,Peoples Services Directorate,Personal Requisites,F106,
http://opendatacommunities.org/id/london-borough-council/sutton,London Borough of Sutton,06/08/2018,1261666,57.50 , WWW.ARGOS.CO.UK,ARGOS PURCHASE,Peoples Services Directorate,Provisions - General,F150,
http://opendatacommunities.org/id/london-borough-council/sutton,London Borough of Sutton,22/08/2018,1261666,24.98 , PIZZA HUT,REFRESHMENTS FOR MEETING,Peoples Services Directorate,Refreshments,F155,
http://opendatacommunities.org/id/london-borough-council/sutton,London Borough of Sutton,14/08/2018,1261666,429.14 , CURRYS ONLINE,CURRYS ORDER REQUESTED BY DAYON LEWIS,Peoples Services Directorate,Client Care/Assistance,H301,
http://opendatacommunities.org/id/london-borough-council/sutton,London Borough of Sutton,17/08/2018,1261666,375.00 , AMAN FURNITURE LTD,HASHIM SETTING UP,Peoples Services Directorate,Set Up Costs - Children Leaving Care,H336,
http://opendatacommunities.org/id/london-borough-council/sutton,London Borough of Sutton,17/08/2018,1261666,635.00 , SUTTON APPLIANCES,HASHIM SETTING UP,Peoples Services Directorate,Set Up Costs - Children Leaving Care,H336,
http://opendatacommunities.org/id/london-borough-council/sutton,London Borough of Sutton,22/08/2018,1261666,55.83 , PREMIER INN,67 - H202 0305 9999 - PREMIER INN LEEDS.PDF,Peoples Services Directorate,Accommodation - Bed and Breakfast,H202,
http://opendatacommunities.org/id/london-borough-council/sutton,London Borough of Sutton,30/07/2018,1261666,132.29 , TRAVELODGE,EMERGENCY ACCOMADATION FOR RAS CLIENT,Peoples Services Directorate,Accommodation - Bed and Breakfast,H202,
http://opendatacommunities.org/id/london-borough-council/sutton,London Borough of Sutton,27/07/2018,1261666,71.45 , ENTERPRISE RENT-A-CAR,ENTERPRISE CAR HIRE,Peoples Services Directorate,Travelling and Subsistence Allowances,A530,
http://opendatacommunities.org/id/london-borough-council/sutton,London Borough of Sutton,10/08/2018,1261666,20.00 , OYSTER AUTO-TOP UP,OYSTER TOP UP,Peoples Services Directorate,Travelling and Subsistence Allowances,A530,
http://opendatacommunities.org/id/london-borough-council/sutton,London Borough of Sutton,10/08/2018,1261666,20.00 , OYSTER AUTO-TOP UP,OYSTER TOP UP,Peoples Services Directorate,Travelling and Subsistence Allowances,A530,
http://opendatacommunities.org/id/london-borough-council/sutton,London Borough of Sutton,09/08/2018,1261666,20.00 , OYSTER AUTO-TOP UP,OYSTER TOP UP,Peoples Services Directorate,Travelling and Subsistence Allowances,A530,
http://opendatacommunities.org/id/london-borough-council/sutton,London Borough of Sutton,08/08/2018,1261666,20.00 , TFL AUTOSETTLEMENT,OYSTER TOP UP SETTLEMENT,Peoples Services Directorate,Travelling and Subsistence Allowances,A530,
http://opendatacommunities.org/id/london-borough-council/sutton,London Borough of Sutton,01/08/2018,1261666,20.00 , OYSTER AUTO-TOP UP,OYSTER TOP UP FOR LAC TEAM,Peoples Services Directorate,Travelling and Subsistence Allowances,A530,
http://opendatacommunities.org/id/london-borough-council/sutton,London Borough of Sutton,01/08/2018,1261666,75.55 , POST OFFICE COUNTER,PASSPORT APPLICATION FOR LAC TEAM,Peoples Services Directorate,Travelling and Subsistence Allowances,A530,
http://opendatacommunities.org/id/london-borough-council/sutton,London Borough of Sutton,30/07/2018,1261666,45.72 , AMFBOWLING.CO.UK,BOWLING ACTIVITIY FOR LAC CHILDREN TO HAVE CONTACT.,Peoples Services Directorate,Travelling and Subsistence Allowances,A530,
http://opendatacommunities.org/id/london-borough-council/sutton,London Borough of Sutton,30/07/2018,1261666,20.00 , OYSTER AUTO-TOP UP,OYSTER TOP UP AUTO TOP UP,Peoples Services Directorate,Travelling and Subsistence Allowances,A530,
http://opendatacommunities.org/id/london-borough-council/sutton,London Borough of Sutton,29/07/2018,1261666,20.00 , OYSTER AUTO-TOP UP,OYSTER TOP UP AUTO TOP UP,Peoples Services Directorate,Travelling and Subsistence Allowances,A530,
http://opendatacommunities.org/id/london-borough-council/sutton,London Borough of Sutton,29/07/2018,1261666,20.00 , OYSTER AUTO-TOP UP,OYSTER TOP UP AUTO TOP UP,Peoples Services Directorate,Travelling and Subsistence Allowances,A530,
http://opendatacommunities.org/id/london-borough-council/sutton,London Borough of Sutton,29/07/2018,1261666,20.00 , OYSTER AUTO-TOP UP,OYSTER TOP UP AUTO TOP UP,Peoples Services Directorate,Travelling and Subsistence Allowances,A530,
http://opendatacommunities.org/id/london-borough-council/sutton,London Borough of Sutton,22/08/2018,1261666,39.60 , WWW.WIGHTLINK.CO.UK,39.60 - E072 0311 9999 - WIGHLINK FERRY CLIENTS X2.PDF,Peoples Services Directorate,Hired Peoples Transport (Children),E072,
http://opendatacommunities.org/id/london-borough-council/sutton,London Borough of Sutton,10/08/2018,1261666,37.00 , WANDSWORTH COUNCIL,BIRTH CERTS PURCHASED,Peoples Services Directorate,Other Equipment - Purchase,F015,
http://opendatacommunities.org/id/london-borough-council/sutton,London Borough of Sutton,23/08/2018,1261666,62.00 , SURREY CC CARD PAY,BIRTH CERTS,Peoples Services Directorate,Personal Requisites,F106,
http://opendatacommunities.org/id/london-borough-council/sutton,London Borough of Sutton,23/08/2018,1261666,16.50 , WWW.WIGHTLINK.CO.UK,CONTACT VISIT,Peoples Services Directorate,Personal Requisites,F106,
http://opendatacommunities.org/id/london-borough-council/sutton,London Borough of Sutton,17/08/2018,1261666,634.17 , TRAVELODGE,ACCOMMODATION,Peoples Services Directorate,Personal Requisites,F106,
http://opendatacommunities.org/id/london-borough-council/sutton,London Borough of Sutton,24/07/2018,1261666,(18.50), GRO HM PASSPORT OFFICE,FACE TO FACE PASSPORT APPLICATION,Peoples Services Directorate,Personal Requisites,F106,
http://opendatacommunities.org/id/london-borough-council/sutton,London Borough of Sutton,26/07/2018,1261666,99.75 , POST OFFICE COUNTER,PASSPORT,Peoples Services Directorate,Personal Requisites,F106,
http://opendatacommunities.org/id/london-borough-council/sutton,London Borough of Sutton,27/07/2018,1261666,20.00 , LBSUTTON,SUTTON REGISTER OFFICE,Peoples Services Directorate,Personal Requisites,F106,
http://opendatacommunities.org/id/london-borough-council/sutton,London Borough of Sutton,24/08/2018,1261666,30.00 , LBSUTTON,BIRTH CERTS PURCHASED,Peoples Services Directorate,Personal Requisites,F106,
http://opendatacommunities.org/id/london-borough-council/sutton,London Borough of Sutton,24/08/2018,1261666,30.00 , LBSUTTON,BIRTH CERT PURCHASED,Peoples Services Directorate,Personal Requisites,F106,
http://opendatacommunities.org/id/london-borough-council/sutton,London Borough of Sutton,25/08/2018,1261666,20.00 , OYSTER AUTO-TOP UP,OYSTER TOP UP,Peoples Services Directorate,Personal Requisites,F106,
http://opendatacommunities.org/id/london-borough-council/sutton,London Borough of Sutton,22/08/2018,1261666,20.00 , OYSTER AUTO-TOP UP,OYSTER TOP UP,Peoples Services Directorate,Personal Requisites,F106,
http://opendatacommunities.org/id/london-borough-council/sutton,London Borough of Sutton,16/08/2018,1261666,48.60 , WWW.ZSL.ORG-DOM,BIRTH CERTIFICATE,Peoples Services Directorate,Personal Requisites,F106,
http://opendatacommunities.org/id/london-borough-council/sutton,London Borough of Sutton,10/08/2018,1261666,30.00 , LBSUTTON,BIRTH CERTS PURCHASED,Peoples Services Directorate,Personal Requisites,F106,
http://opendatacommunities.org/id/london-borough-council/sutton,London Borough of Sutton,10/08/2018,1261666,30.00 , LBSUTTON,BIRTH CERTS PURCHASED,Peoples Services Directorate,Personal Requisites,F106,
http://opendatacommunities.org/id/london-borough-council/sutton,London Borough of Sutton,09/08/2018,1261666,30.00 , LBSUTTON,BIRTH CERTS PURCHASED,Peoples Services Directorate,Personal Requisites,F106,
http://opendatacommunities.org/id/london-borough-council/sutton,London Borough of Sutton,09/08/2018,1261666,30.00 , LBSUTTON,BIRTH CERTS PURCHASED,Peoples Services Directorate,Personal Requisites,F106,
http://opendatacommunities.org/id/london-borough-council/sutton,London Borough of Sutton,01/08/2018,1261666,93.00 , WWW.ZSL.ORG-DOM,TYS WEEKEND ACTIVITY FOR YP,Peoples Services Directorate,Personal Requisites,F106,
http://opendatacommunities.org/id/london-borough-council/sutton,London Borough of Sutton,01/08/2018,1261666,20.00 , LBSUTTON,BIRTH CERTS PURCHASED FOR LAC,Peoples Services Directorate,Personal Requisites,F106,
http://opendatacommunities.org/id/london-borough-council/sutton,London Borough of Sutton,22/08/2018,1261666,58.75 , TRAVELODGE,70.50 - H202 0311 9999 - B&B CONTACT TRAVELODGE.PDF,Peoples Services Directorate,Accommodation - Bed and Breakfast,H202,
http://opendatacommunities.org/id/london-borough-council/sutton,London Borough of Sutton,26/07/2018,1261666,33.00 , WWW.WIGHTLINK.CO.UK,39.60 - H212 0311 9999 - WIGTLINK FERRY FOR CLIENT,Peoples Services Directorate,C.C.A Travel & Subsistance,H212,
http://opendatacommunities.org/id/london-borough-council/sutton,London Borough of Sutton,09/08/2018,1261666,140.00 , TRAVELODGE,ACCOMMODATION,Peoples Services Directorate,Client Care/Assistance,H301,
http://opendatacommunities.org/id/london-borough-council/sutton,London Borough of Sutton,09/08/2018,1261666,20.00 , OYSTER AUTO-TOP UP,OYSTER TOP UP,Peoples Services Directorate,Travelling and Subsistence Allowances,A530,
http://opendatacommunities.org/id/london-borough-council/sutton,London Borough of Sutton,08/08/2018,1261666,20.00 , TFL AUTOSETTLEMENT,OYSTER TOP UP,Peoples Services Directorate,Travelling and Subsistence Allowances,A530,
http://opendatacommunities.org/id/london-borough-council/sutton,London Borough of Sutton,08/08/2018,1261666,20.00 , AUTO TOP-UP ARREARS,OYSTER TOP UP,Peoples Services Directorate,Travelling and Subsistence Allowances,A530,
http://opendatacommunities.org/id/london-borough-council/sutton,London Borough of Sutton,04/08/2018,1261666,20.00 , OYSTER AUTO-TOP UP,OYSTER TOP UP,Peoples Services Directorate,Travelling and Subsistence Allowances,A530,
http://opendatacommunities.org/id/london-borough-council/sutton,London Borough of Sutton,14/08/2018,1261666,127.00 , HM PASSPORT,PASSPORT APPLICATION,Peoples Services Directorate,Personal Requisites,F106,
http://opendatacommunities.org/id/london-borough-council/sutton,London Borough of Sutton,14/08/2018,1261666,30.00 , LBSUTTON,BIRTH CERT,Peoples Services Directorate,Personal Requisites,F106,
http://opendatacommunities.org/id/london-borough-council/sutton,London Borough of Sutton,26/07/2018,1261666,10.00 , LBSUTTON,BIRTH CERT,Peoples Services Directorate,Personal Requisites,F106,
http://opendatacommunities.org/id/london-borough-council/sutton,London Borough of Sutton,24/08/2018,1261666,167.83 , AIRASIA_Z2  LRLRPD,167.83 - F106 0312 9999 - PHP FLIGHTS,Peoples Services Directorate,Personal Requisites,F106,
http://opendatacommunities.org/id/london-borough-council/sutton,London Borough of Sutton,24/08/2018,1261666,317.17 , UKVI,UK VISA - PENDING RECEIPT,Peoples Services Directorate,Personal Requisites,F106,
http://opendatacommunities.org/id/london-borough-council/sutton,London Borough of Sutton,24/08/2018,1261666,317.17 , UKVI,UK VISA - PENDING RECEIPT,Peoples Services Directorate,Personal Requisites,F106,
http://opendatacommunities.org/id/london-borough-council/sutton,London Borough of Sutton,24/08/2018,1261666,317.17 , UKVI,UK VISA - PENDING RECEIPT,Peoples Services Directorate,Personal Requisites,F106,
http://opendatacommunities.org/id/london-borough-council/sutton,London Borough of Sutton,14/08/2018,1261666,10.00 , LBSUTTON,DEATH CERTIFICATE,Peoples Services Directorate,Personal Requisites,F106,
http://opendatacommunities.org/id/london-borough-council/sutton,London Borough of Sutton,27/07/2018,1261666,30.00 , LBSUTTON,SUTTON REGISTER OFFICE,Peoples Services Directorate,Personal Requisites,F106,
http://opendatacommunities.org/id/london-borough-council/sutton,London Borough of Sutton,10/08/2018,1261666,30.00 , LBSUTTON,BIRTH CERTS,Peoples Services Directorate,Personal Requisites,F106,
http://opendatacommunities.org/id/london-borough-council/sutton,London Borough of Sutton,28/08/2018,1261666,8.72 , UKVI,EXCHANGE FEE,Peoples Services Directorate,C.C.A Travel & Subsistance,H212,
http://opendatacommunities.org/id/london-borough-council/sutton,London Borough of Sutton,28/08/2018,1261666,8.72 , UKVI,EXCHANGE FEE,Peoples Services Directorate,C.C.A Travel & Subsistance,H212,
http://opendatacommunities.org/id/london-borough-council/sutton,London Borough of Sutton,28/08/2018,1261666,8.72 , UKVI,EXCHANGE FEE,Peoples Services Directorate,C.C.A Travel & Subsistance,H212,
http://opendatacommunities.org/id/london-borough-council/sutton,London Borough of Sutton,25/08/2018,1261666,20.00 , OYSTER AUTO-TOP UP,OYSTER TOP UP,Peoples Services Directorate,Travelling and Subsistence Allowances,A530,
http://opendatacommunities.org/id/london-borough-council/sutton,London Borough of Sutton,08/08/2018,1261666,20.00 , TFL AUTOSETTLEMENT,OYSTER TOP UP,Peoples Services Directorate,Travelling and Subsistence Allowances,A530,
http://opendatacommunities.org/id/london-borough-council/sutton,London Borough of Sutton,06/08/2018,1261666,159.96 , WWW.ARGOS.CO.UK,ARGOS PURCHASE,Peoples Services Directorate,Client Care/Assistance,H301,
http://opendatacommunities.org/id/london-borough-council/sutton,London Borough of Sutton,03/08/2018,1261666,103.33 , HOTEL ON BOOKING.COM,124.00 - 321 - HOTEL ACCOMODATION .PDF,Peoples Services Directorate,Hotel Accomodation,A512,
http://opendatacommunities.org/id/london-borough-council/sutton,London Borough of Sutton,12/08/2018,1261666,112.17 , AMZN MKTP UK,AMAZON ORDER,Peoples Services Directorate,Personal Requisites,F106,
http://opendatacommunities.org/id/london-borough-council/sutton,London Borough of Sutton,10/08/2018,1261666,7.99 , AMZN MKTP UK,AMAZON ORDER,Peoples Services Directorate,Personal Requisites,F106,
http://opendatacommunities.org/id/london-borough-council/sutton,London Borough of Sutton,12/08/2018,1261666,40.17 , AMZN MKTP UK,AMAZON ORDER,Peoples Services Directorate,Personal Requisites,F106,
http://opendatacommunities.org/id/london-borough-council/sutton,London Borough of Sutton,09/08/2018,1261666,6.90 , AMZN MKTP UK,AMAZON ORDER,Peoples Services Directorate,Personal Requisites,F106,
http://opendatacommunities.org/id/london-borough-council/sutton,London Borough of Sutton,08/08/2018,1261666,4.16 , AMAZON.CO.UK,AMAZON ORDER,Peoples Services Directorate,Personal Requisites,F106,
http://opendatacommunities.org/id/london-borough-council/sutton,London Borough of Sutton,08/08/2018,1261666,18.95 , AMZN MKTP UK,AMAZON ORDER,Peoples Services Directorate,Personal Requisites,F106,
http://opendatacommunities.org/id/london-borough-council/sutton,London Borough of Sutton,08/08/2018,1261666,1.62 , AMZN MKTP UK,AMAZON ORDER,Peoples Services Directorate,Personal Requisites,F106,
http://opendatacommunities.org/id/london-borough-council/sutton,London Borough of Sutton,08/08/2018,1261666,11.74 , AMZN MKTP UK,AMAZON ORDER,Peoples Services Directorate,Personal Requisites,F106,
http://opendatacommunities.org/id/london-borough-council/sutton,London Borough of Sutton,08/08/2018,1261666,4.99 , AMZN MKTP UK,AMAZON ORDER,Peoples Services Directorate,Personal Requisites,F106,
http://opendatacommunities.org/id/london-borough-council/sutton,London Borough of Sutton,08/08/2018,1261666,13.95 , AMZN MKTP UK,AMAZON ORDER,Peoples Services Directorate,Personal Requisites,F106,
http://opendatacommunities.org/id/london-borough-council/sutton,London Borough of Sutton,15/08/2018,1261666,72.00 , WILKO.COM,PURCHASE FRO START TEAM,Peoples Services Directorate,Personal Requisites,F106,
http://opendatacommunities.org/id/london-borough-council/sutton,London Borough of Sutton,02/08/2018,1261666,170.00 , COUNTY COUNTY,ADOPTION APPLICATION,Peoples Services Directorate,Personal Requisites,F106,
http://opendatacommunities.org/id/london-borough-council/sutton,London Borough of Sutton,01/08/2018,1261666,170.00 , COUNTY COUNTY,ADOPTION ORDER PURCHASED FROM COURT,Peoples Services Directorate,Provisions - General,F150,
http://opendatacommunities.org/id/london-borough-council/sutton,London Borough of Sutton,07/08/2018,1261666,109.93 , HOLIDAY INNS,ACCOMMODATION CHILDREN'S SAFEGUARDING CHAIR,Chief Executive's Directorate,Hotel Accomodation,A512,
http://opendatacommunities.org/id/london-borough-council/sutton,London Borough of Sutton,07/08/2018,1261666,96.19 , HOLIDAY INNS,ACCOMODATION FOR CHILDREN SAFEGUARDING CHAIR,Chief Executive's Directorate,Hotel Accomodation,A512,
http://opendatacommunities.org/id/london-borough-council/sutton,London Borough of Sutton,09/08/2018,1261666,11.23 , AMZN MKTP UK AMAZON.CO,AMAZON ORDER,Peoples Services Directorate,General Maintenance,D500,
http://opendatacommunities.org/id/london-borough-council/sutton,London Borough of Sutton,07/08/2018,1261666,28.27 , WWW.ARGOS.CO.UK,ARGOS ORDER,Peoples Services Directorate,Other Premises Costs,D715,
http://opendatacommunities.org/id/london-borough-council/sutton,London Borough of Sutton,07/08/2018,1261666,102.21 , TESCO STORES 5999,TESCO PAYMENT,Peoples Services Directorate,Personal Requisites,F106,
http://opendatacommunities.org/id/london-borough-council/sutton,London Borough of Sutton,03/08/2018,1261666,15.49 , AMZN MKTP UK,15.49 - F150 0340 9999 - AMAZON - BOTTLES REQUESTED FOR CONTACT CENTRE .PDF,Peoples Services Directorate,Provisions - General,F150,
http://opendatacommunities.org/id/london-borough-council/sutton,London Borough of Sutton,03/08/2018,1261666,14.99 , AMZN MKTP UK,17.99 - F150 0340 9999 - AMAZON - REFRESHMENTS FOR CONTACT CENTRE.PDF,Peoples Services Directorate,Provisions - General,F150,
http://opendatacommunities.org/id/london-borough-council/sutton,London Borough of Sutton,22/08/2018,1261666,55.00 , IRCAS,55.00 - F299 0304 9999 - TRAIN FAYRE FOR MT.PDF,Peoples Services Directorate,Fees - Other,F299,
http://opendatacommunities.org/id/london-borough-council/sutton,London Borough of Sutton,06/08/2018,1261666,626.21 , TRAVELODGE,751.45 - 0371 - HOTEL ACCOMMODATION - TRAVELODGE EPSOM CENTRAL.PNG,Peoples Services Directorate,Hotel Accomodation,A512,
http://opendatacommunities.org/id/london-borough-council/sutton,London Borough of Sutton,10/08/2018,1261666,42.48 , BLS APPLEYARDFLOWERS.C,FLOWERS,Peoples Services Directorate,Personal Requisites,F106,
http://opendatacommunities.org/id/london-borough-council/sutton,London Borough of Sutton,16/08/2018,1261666,20.00 , OYSTER AUTO-TOP UP,OYSTER TOP UP,Peoples Services Directorate,Travelling and Subsistence Allowances,A530,
http://opendatacommunities.org/id/london-borough-council/sutton,London Borough of Sutton,11/08/2018,1261666,20.00 , OYSTER AUTO-TOP UP,OYSTER TOP UP,Peoples Services Directorate,Travelling and Subsistence Allowances,A530,
http://opendatacommunities.org/id/london-borough-council/sutton,London Borough of Sutton,20/08/2018,1261666,165.83 , TRAVELODGE,199 - H211 0384 9999 - TRAVELODGE LONDON WIMBLEDON MORDEN.PNG,Peoples Services Directorate,C.C.A Rent & Utilities,H211,
http://opendatacommunities.org/id/london-borough-council/sutton,London Borough of Sutton,27/07/2018,1261666,125.00 , TESCO STORES 5374,150.00 - G322 0528 9999 - TESCO GIFTCARD PORTAGE,Peoples Services Directorate,Play Groups,G322,
http://opendatacommunities.org/id/london-borough-council/sutton,London Borough of Sutton,02/08/2018,1261666,89.00 , CARDEN PARK HOTEL,HOTEL AT LOCAL GOVERNMENT CONFERENCE,"Environment, Housing & Regeneration Directorate",Travelling and Subsistence Allowances,A530,
http://opendatacommunities.org/id/london-borough-council/sutton,London Borough of Sutton,01/08/2018,1261666,55.00 , VIRGIN TRAINS,SPLIT -  TRAINS TO CONFERENCE,"Environment, Housing & Regeneration Directorate",Travelling and Subsistence Allowances,A530,
http://opendatacommunities.org/id/london-borough-council/sutton,London Borough of Sutton,02/08/2018,1261666,89.00 , CARDEN PARK HOTEL,HOTEL AT LOCAL GOVERNMENT CONFERENCE,"Environment, Housing & Regeneration Directorate",Travelling and Subsistence Allowances,A530,
http://opendatacommunities.org/id/london-borough-council/sutton,London Borough of Sutton,01/08/2018,1261666,55.00 , VIRGIN TRAINS,SPLIT - TRAINS TO CONFERENCE,"Environment, Housing & Regeneration Directorate",Travelling and Subsistence Allowances,A530,
http://opendatacommunities.org/id/london-borough-council/sutton,London Borough of Sutton,02/08/2018,1261666,20.00 , OYSTER AUTO-TOP UP,OYSTERCARD TOP UP FOR,"Environment, Housing & Regeneration Directorate",General Office Expenses,F235,
http://opendatacommunities.org/id/london-borough-council/sutton,London Borough of Sutton,20/08/2018,1261666,41.74 , NRS HEALTHCARE,FOOT REST - H&S EQUIPMENT,"Environment, Housing & Regeneration Directorate",Health and Safety Equipment,F005,
http://opendatacommunities.org/id/london-borough-council/sutton,London Borough of Sutton,27/08/2018,1261666,995.00 , PENTAGON,PRINCE2 TRAINING COURSE,Chief Executive's Directorate,Repairs to Administrative Equipment,F030,
http://opendatacommunities.org/id/london-borough-council/sutton,London Borough of Sutton,07/08/2018,1261666,(6.66), AMAZON PRIME,REFUND FOR PRIME MEMBERSHIP,Chief Executive's Directorate,Repairs to Administrative Equipment,F030,
http://opendatacommunities.org/id/london-borough-council/sutton,London Borough of Sutton,10/08/2018,1261666,62.39 , SAINSBURYS 2331,EVENT REFRESHMENTS WALLINGTON LIBRARY,Chief Executive's Directorate,Arts Programme,F306,
http://opendatacommunities.org/id/london-borough-council/sutton,London Borough of Sutton,14/08/2018,1261666,40.00 , PCS HISTORYONICS,WORDWORM TREATMENT,Chief Executive's Directorate,Records and Casettes,F007,
http://opendatacommunities.org/id/london-borough-council/sutton,London Borough of Sutton,14/08/2018,1261666,(40.00), PCS HISTORYONICS,WOODWORM TREATMENT REFUND,Chief Executive's Directorate,Records and Casettes,F007,
http://opendatacommunities.org/id/london-borough-council/sutton,London Borough of Sutton,09/08/2018,1261666,40.00 , PCS HISTORYONICS,WOODWORM TREATMENT,Chief Executive's Directorate,Records and Casettes,F007,
http://opendatacommunities.org/id/london-borough-council/sutton,London Borough of Sutton,23/08/2018,1261666,59.50 , SAINSBURYS TO YOU 0038,WHITEHALL TEA ROOM,Chief Executive's Directorate,Provisions - General,F150,
http://opendatacommunities.org/id/london-borough-council/sutton,London Borough of Sutton,16/08/2018,1261666,45.80 , SAINSBURYS TO YOU 0038,WHITEHALL TEA ROOM,Chief Executive's Directorate,Provisions - General,F150,
http://opendatacommunities.org/id/london-borough-council/sutton,London Borough of Sutton,09/08/2018,1261666,39.55 , SAINSBURYS TO YOU 0038,WHITEHALL TEA ROOM,Chief Executive's Directorate,Provisions - General,F150,
http://opendatacommunities.org/id/london-borough-council/sutton,London Borough of Sutton,06/08/2018,1261666,6.30 , AMZN MKTP UK,FRIDGE THERMOMETER WHITEHALL TEA ROOM,Chief Executive's Directorate,Provisions - General,F150,
http://opendatacommunities.org/id/london-borough-council/sutton,London Borough of Sutton,02/08/2018,1261666,61.45 , SAINSBURYS TO YOU 0038,WHITEHALL TEA ROOM,Chief Executive's Directorate,Provisions - General,F150,
http://opendatacommunities.org/id/london-borough-council/sutton,London Borough of Sutton,20/08/2018,1261666,13.91 , ASDA STORES,CITIZENSHIP REFRESHMENTS,Resources Directorate,Hospitality (VAT not Recoverable),F325,
http://opendatacommunities.org/id/london-borough-council/sutton,London Borough of Sutton,03/08/2018,1261666,8.32 , SPOTIFY P06EC5E249,MUSIC SUBSCRIPTION FOR MARRIAGES,Resources Directorate,Subscriptions - General,F450,
http://opendatacommunities.org/id/london-borough-council/sutton,London Borough of Sutton,27/07/2018,1261666,34.00 , WWW.SOLOPRESS.COM,PROMOTIONAL MATERIALS FOR WHITEHALL HISTORIC HOUSE,Chief Executive's Directorate,Other Services,F340,
http://opendatacommunities.org/id/london-borough-council/sutton,London Borough of Sutton,31/07/2018,1261666,69.23 , FLORAL IMAGE SUSSEX,CORPORATE FLOWER HIRE,Chief Executive's Directorate,Miscellaneous Expenses,F620,
http://opendatacommunities.org/id/london-borough-council/sutton,London Borough of Sutton,02/08/2018,1261666,89.00 , CARDEN PARK HOTEL,HOTEL AT LOCAL GOVERNMENT CONFERENCE,"Environment, Housing & Regeneration Directorate",Travelling and Subsistence Allowances,A530,
http://opendatacommunities.org/id/london-borough-council/sutton,London Borough of Sutton,01/08/2018,1261666,55.00 , VIRGIN TRAINS,SPLIT - TRAINS TO CONFERENCE ,"Environment, Housing & Regeneration Directorate",Travelling and Subsistence Allowances,A530,
http://opendatacommunities.org/id/london-borough-council/sutton,London Borough of Sutton,08/08/2018,1261666,20.00 , OYSTER AUTO-TOP UP,OYSTERCARD TOP UP FOR,"Environment, Housing & Regeneration Directorate",General Office Expenses,F235,
http://opendatacommunities.org/id/london-borough-council/sutton,London Borough of Sutton,03/08/2018,1261666,10.00 , OYSTER ONLINE,OYSTERCARD TOP UP FOR,"Environment, Housing & Regeneration Directorate",General Office Expenses,F235,
http://opendatacommunities.org/id/london-borough-council/sutton,London Borough of Sutton,26/08/2018,1261666,20.00 , OYSTER AUTO-TOP UP,OYSTERCARD TOP UP,HRA,General Office Expenses,F235,
http://opendatacommunities.org/id/london-borough-council/sutton,London Borough of Sutton,19/08/2018,1261666,20.00 , OYSTER AUTO-TOP UP,OYSTERCARD TOP UP,HRA,General Office Expenses,F235,
http://opendatacommunities.org/id/london-borough-council/sutton,London Borough of Sutton,29/07/2018,1261666,20.00 , OYSTER AUTO-TOP UP,OYSTER TOP UP,HRA,General Office Expenses,F235,
http://opendatacommunities.org/id/london-borough-council/sutton,London Borough of Sutton,16/08/2018,1261666,20.00 , OYSTER AUTO-TOP UP,OYSTER,"Environment, Housing & Regeneration Directorate",General Office Expenses,F235,
http://opendatacommunities.org/id/london-borough-council/sutton,London Borough of Sutton,23/08/2018,1261666,279.45 , TRAINLINE,TRAIN TICKETS TO ATTEND WIRRAL VISIT ON THE 24TH SEPTEMBER 2018,Chief Executive's Directorate,Travelling and Subsistence Allowances,A530,
http://opendatacommunities.org/id/london-borough-council/sutton,London Borough of Sutton,17/08/2018,1261666,343.20 , THE LINER HOTEL,HOTEL ACCOMMODATION AT THE LINER ON THE 23RD SEPTEMBER 2018 TO ATTEND THE WIRRAL VISIT ON THE 24TH SEPTEMBER 2018,Chief Executive's Directorate,Travelling and Subsistence Allowances,A530,
http://opendatacommunities.org/id/london-borough-council/sutton,London Borough of Sutton,24/08/2018,1261666,20.00 , OYSTER AUTO-TOP UP,TEAM OYSTER,Chief Executive's Directorate,Travelling and Subsistence Allowances,A530,
http://opendatacommunities.org/id/london-borough-council/sutton,London Borough of Sutton,26/08/2018,1261666,20.00 , OYSTER AUTO-TOP UP,TEAM OYSTER,Chief Executive's Directorate,Travelling and Subsistence Allowances,A530,
http://opendatacommunities.org/id/london-borough-council/sutton,London Borough of Sutton,17/08/2018,1261666,20.00 , OYSTER AUTO-TOP UP,TEAM OYSTER,Chief Executive's Directorate,Travelling and Subsistence Allowances,A530,
http://opendatacommunities.org/id/london-borough-council/sutton,London Borough of Sutton,19/08/2018,1261666,20.00 , OYSTER AUTO-TOP UP,PIKOTOCHART LICENSE,Chief Executive's Directorate,Travelling and Subsistence Allowances,A530,
http://opendatacommunities.org/id/london-borough-council/sutton,London Borough of Sutton,15/08/2018,1261666,20.00 , OYSTER AUTO-TOP UP,TEAM OYSTER,Chief Executive's Directorate,Travelling and Subsistence Allowances,A530,
http://opendatacommunities.org/id/london-borough-council/sutton,London Borough of Sutton,10/08/2018,1261666,20.00 , OYSTER AUTO-TOP UP,TEAM OYSTER,Chief Executive's Directorate,Travelling and Subsistence Allowances,A530,
http://opendatacommunities.org/id/london-borough-council/sutton,London Borough of Sutton,10/08/2018,1261666,20.00 , OYSTER AUTO-TOP UP,TEAM OYSTER,Chief Executive's Directorate,Travelling and Subsistence Allowances,A530,
http://opendatacommunities.org/id/london-borough-council/sutton,London Borough of Sutton,27/07/2018,1261666,362.10 , WWW.ETCVENUES.CO.UK,CMT AWAYDAY ON 26.09.18,Chief Executive's Directorate,Fees - Room Hire,F290,
http://opendatacommunities.org/id/london-borough-council/sutton,London Borough of Sutton,20/08/2018,1261666,6.28 , PIKTOCHART,PIKOTOCHART LICENSE,Chief Executive's Directorate,Purchase of Software,F381,
http://opendatacommunities.org/id/london-borough-council/sutton,London Borough of Sutton,19/08/2018,1261666,228.35 , PIKTOCHART,PIKOTOCHART LICENSE,Chief Executive's Directorate,Purchase of Software,F381,
http://opendatacommunities.org/id/london-borough-council/sutton,London Borough of Sutton,15/08/2018,1261666,5.18 , MAILCHIMP    MONTHLY,WEB HOSTING,Chief Executive's Directorate,Fees - Computer Software,F384,
http://opendatacommunities.org/id/london-borough-council/sutton,London Borough of Sutton,14/08/2018,1261666,188.46 , MAILCHIMP    MONTHLY,WEB HOSTING,Chief Executive's Directorate,Fees - Computer Software,F384,
http://opendatacommunities.org/id/london-borough-council/sutton,London Borough of Sutton,15/08/2018,1261666,185.00 , WWW.ICSA.ORG.UK,ICSA MEMBERSHIP RENEWAL,Resources Directorate,Training - Course Fees,A520,
http://opendatacommunities.org/id/london-borough-council/sutton,London Borough of Sutton,22/08/2018,1261666,19.99 , AMZN MKTP UK,EQUIPMENT,Resources Directorate,Personal Requisites,F106,
http://opendatacommunities.org/id/london-borough-council/sutton,London Borough of Sutton,01/08/2018,1261666,300.00 , WM MORRISONS,MORRISON VOUCHERS PURCHASED FOR SUBSISTANCE,Resources Directorate,Provisions - General,F150,
http://opendatacommunities.org/id/london-borough-council/sutton,London Borough of Sutton,15/08/2018,1261666,16.00 , SHOECARE,3 KEYS CUT FOR INDEPENDENT GROUP ROOM - TIMPSONS,Resources Directorate,Materials - General,F100,
http://opendatacommunities.org/id/london-borough-council/sutton,London Borough of Sutton,02/08/2018,1261666,64.19 , CARTRIDGE SAVE,CARTRIDGES FOR COUNCILLORS,Resources Directorate,Stationery,F220,
http://opendatacommunities.org/id/london-borough-council/sutton,London Borough of Sutton,16/08/2018,1261666,19.96 , AMZN MKTP UK,PEBBLE FOR EMERGENCY PLANNING TEAM,"Environment, Housing & Regeneration Directorate",Purchase of IT Equipment,F380,
http://opendatacommunities.org/id/london-borough-council/sutton,London Borough of Sutton,22/08/2018,1261666,394.57 , AMZN MKTP UK,REPROGRAPHIC PRINT HEAD FOR MEDIA OFFICE,"Environment, Housing & Regeneration Directorate",Purchase of IT Equipment,F380,
http://opendatacommunities.org/id/london-borough-council/sutton,London Borough of Sutton,29/07/2018,1261666,24.12 , AMAZON SVCS EU-UK AMAZ,TABLETOP COVER PS,"Environment, Housing & Regeneration Directorate",Other Equipment - Purchase,F015,
http://opendatacommunities.org/id/london-borough-council/sutton,London Borough of Sutton,26/07/2018,1261666,20.00 , OYSTER AUTO-TOP UP,OYSTER TOP UP,Resources Directorate,Travelling and Subsistence Allowances,A530,
http://opendatacommunities.org/id/london-borough-council/sutton,London Borough of Sutton,21/08/2018,1261666,347.48 , WWW.ARGOS.CO.UK,PURCHASE OF ELECTRIC COOKER AND FRIDGE FREEZER FOR CRISIS LOAN,Resources Directorate,Grants,F473,
http://opendatacommunities.org/id/london-borough-council/sutton,London Borough of Sutton,15/08/2018,1261666,234.95 , WWW.ARGOS.CO.UK,PURCHASE OF 2 X SINGLE MATTRESSES AND BUNK BED FOR CRISIS GRANT,Resources Directorate,Grants,F473,
http://opendatacommunities.org/id/london-borough-council/sutton,London Borough of Sutton,10/08/2018,1261666,51.62 , WWW.ARGOS.CO.UK,PURCHASE OF BED FRAME FOR CRISIS GRANT,Resources Directorate,Grants,F473,
http://opendatacommunities.org/id/london-borough-council/sutton,London Borough of Sutton,02/08/2018,1261666,33.33 , OYSTER AUTO-TOP UP,OYSTER TOP UP FOR REVENUES STAFF TRAVEL,Resources Directorate,Travelling and Subsistence Allowances,A530,
http://opendatacommunities.org/id/london-borough-council/sutton,London Borough of Sutton,26/07/2018,1261666,30.00 , WWW.GOV.UK,PROBATE CERTIFICATE PURCHASE,Resources Directorate,General Office Expenses,F235,
http://opendatacommunities.org/id/london-borough-council/sutton,London Borough of Sutton,22/08/2018,1261666,16.67 , WWW.GOV.UK,PROBATE CERTIFICATE PURCHASE,Resources Directorate,Subscriptions - General,F450,
http://opendatacommunities.org/id/london-borough-council/sutton,London Borough of Sutton,25/08/2018,1261666,33.33 , OYSTER AUTO-TOP UP,OYSTER TOP UP FOR BENEFIT STAFF TRAVEL,Resources Directorate,Training - Travel and Subsistence,A521,
http://opendatacommunities.org/id/london-borough-council/sutton,London Borough of Sutton,08/08/2018,1261666,110.83 , SHELTER,BOOK BUNDLE,Resources Directorate,Books of Reference/Statute,F222,
http://opendatacommunities.org/id/london-borough-council/sutton,London Borough of Sutton,09/08/2018,1261666,30.00 , WWW.VEOLIA.COM,WASTE PAYMENT PORTAL TEST 2 REFUND TO FOLLOW,Resources Directorate,General Office Expenses,F235,
http://opendatacommunities.org/id/london-borough-council/sutton,London Borough of Sutton,09/08/2018,1261666,30.00 , WWW.VEOLIA.COM,WASTE PAYMENT PORTAL TEST 1 REFUND TO FOLLOW,Resources Directorate,General Office Expenses,F235,
http://opendatacommunities.org/id/london-borough-council/sutton,London Borough of Sutton,31/07/2018,1261666,265.25 , PEARSON ED LTD,F009 6417 9999 - 318.30 PEARSONS BOOKS,Peoples Services Directorate,Education Equipment,F009,
http://opendatacommunities.org/id/london-borough-council/sutton,London Borough of Sutton,26/07/2018,1261666,15.98 , OFFICIALRECORDCOUK,BIRTH CERTIFICATE,Peoples Services Directorate,Personal Requisites,F106,
http://opendatacommunities.org/id/london-borough-council/sutton,London Borough of Sutton,15/08/2018,1261666,316.33 , ACCESS SELF STORAG,STORAGE FOR CLIENT,Peoples Services Directorate,Offsite Storage,F231,
http://opendatacommunities.org/id/london-borough-council/sutton,London Borough of Sutton,03/08/2018,1261666,183.32 , CURRYS ONLINE,219.99 - 6431- TV PURCHASE .PDF,Peoples Services Directorate,Personal Requisites,F106,
http://opendatacommunities.org/id/london-borough-council/sutton,London Borough of Sutton,03/08/2018,1261666,30.37 , THE CORNER VET CLINIC,36.45 - F106 6452 9999 - VET CREMATION OF CAT.PDF,Peoples Services Directorate,Personal Requisites,F106,
http://opendatacommunities.org/id/london-borough-council/sutton,London Borough of Sutton,02/08/2018,1261666,85.24 , AMZN MKTP UK,AMAZON PURCHASE FOR START TEAM,Peoples Services Directorate,Stationery,F220,
http://opendatacommunities.org/id/london-borough-council/sutton,London Borough of Sutton,15/08/2018,1261666,345.16 , AMZN MKTP UK,AMAZON ORDER START,Peoples Services Directorate,Miscellaneous Expenses,F620,
http://opendatacommunities.org/id/london-borough-council/sutton,London Borough of Sutton,14/08/2018,1261666,29.08 , AMZN MKTP UK,AMAZON ORDER START,Peoples Services Directorate,Miscellaneous Expenses,F620,
